[Event "Early-Titled-Tuesday-Blitz-March-05-2024"]
[Site "Chess.com"]
[Date "2024.03.05"]
[Round "5"]
[White "MeesvanOsch"]
[Black "Penafiel-Josselyne02"]
[Result "1-0"]
[WhiteElo "2373"]
[BlackElo "2056"]
[TimeControl "180+1"]
[EndTime "8:58:53 PST"]
[Termination "MeesvanOsch won on time"]

1. e4 {[%clk 0:03:00.9]} 1... c5 {[%clk 0:02:58.3]} 2. Nf3 {[%clk 0:03:00]} 2...
d6 {[%clk 0:02:55.8]} 3. d4 {[%clk 0:03:00.4]} 3... cxd4 {[%clk 0:02:55.3]} 4.
Nxd4 {[%clk 0:03:01.3]} 4... Nf6 {[%clk 0:02:54.9]} 5. Nc3 {[%clk 0:03:00.2]}
5... Nc6 {[%clk 0:02:55]} 6. Nd5 {[%clk 0:02:54]} 6... Nxd5 {[%clk 0:02:34.9]}
7. exd5 {[%clk 0:02:54.9]} 7... Qa5+ {[%clk 0:02:32.4]} 8. Bd2 {[%clk
0:02:55.1]} 8... Qxd5 {[%clk 0:02:29.7]} 9. Nb5 {[%clk 0:02:55.7]} 9... Qe6+
{[%clk 0:02:25.6]} 10. Be2 {[%clk 0:02:56.2]} 10... Qd7 {[%clk 0:02:23.6]} 11.
O-O {[%clk 0:02:55]} 11... a6 {[%clk 0:02:11.2]} 12. Nc3 {[%clk 0:02:53.9]}
12... e6 {[%clk 0:02:04.4]} 13. Na4 {[%clk 0:02:52]} 13... Qc7 {[%clk
0:01:55.7]} 14. c4 {[%clk 0:02:50.7]} 14... Rb8 {[%clk 0:01:49.7]} 15. Bf4
{[%clk 0:02:14.5]} 15... Be7 {[%clk 0:01:40.3]} 16. c5 {[%clk 0:02:11.3]} 16...
e5 {[%clk 0:01:33.3]} 17. cxd6 {[%clk 0:02:07.9]} 17... Bxd6 {[%clk 0:01:32.2]}
18. Be3 {[%clk 0:02:06.4]} 18... O-O {[%clk 0:01:29.4]} 19. Bb6 {[%clk
0:02:02.9]} 19... Qe7 {[%clk 0:01:26.3]} 20. Rc1 {[%clk 0:01:53.7]} 20... Bd7
{[%clk 0:01:09.7]} 21. Nc5 {[%clk 0:01:47.8]} 21... Rbc8 {[%clk 0:00:53.8]} 22.
Nxd7 {[%clk 0:01:41.7]} 22... Qxd7 {[%clk 0:00:51.5]} 23. Bg4 {[%clk 0:01:29.3]}
23... f5 {[%clk 0:00:49.7]} 24. Qd5+ {[%clk 0:01:25.3]} 24... Kh8 {[%clk
0:00:49.5]} 25. Rfd1 {[%clk 0:01:25.2]} 25... Nd4 {[%clk 0:00:20]} 26. Rxc8
{[%clk 0:01:19.6]} 26... Rxc8 {[%clk 0:00:19.5]} 27. Bxd4 {[%clk 0:01:18.9]}
27... exd4 {[%clk 0:00:19]} 28. Bxf5 {[%clk 0:01:12.3]} 28... Bxh2+ {[%clk
0:00:18.4]} 29. Kxh2 {[%clk 0:00:59.7]} 29... Qxd5 {[%clk 0:00:18.5]} 30. Bxc8
{[%clk 0:01:00.5]} 30... Qd6+ {[%clk 0:00:18.3]} 31. g3 {[%clk 0:01:00.3]} 31...
g6 {[%clk 0:00:18.2]} 32. Bg4 {[%clk 0:00:58.7]} 32... Kg7 {[%clk 0:00:17.6]}
33. Kg2 {[%clk 0:00:57.6]} 33... b5 {[%clk 0:00:16.5]} 34. Rd3 {[%clk
0:00:56.9]} 34... Qd5+ {[%clk 0:00:15.6]} 35. Bf3 {[%clk 0:00:56.5]} 35... Qc4
{[%clk 0:00:15.4]} 36. Rd2 {[%clk 0:00:51.8]} 36... Kf6 {[%clk 0:00:13.8]} 37.
b3 {[%clk 0:00:49.4]} 37... Qc3 {[%clk 0:00:13.9]} 38. Rd1 {[%clk 0:00:46.9]}
38... d3 {[%clk 0:00:14.3]} 39. Be4 {[%clk 0:00:46.7]} 39... d2 {[%clk
0:00:14.6]} 40. Bf3 {[%clk 0:00:46.4]} 40... Ke5 {[%clk 0:00:12.7]} 41. Kf1
{[%clk 0:00:44.8]} 41... Qd3+ {[%clk 0:00:11.9]} 42. Be2 {[%clk 0:00:44.8]}
42... Qc2 {[%clk 0:00:12.1]} 43. a4 {[%clk 0:00:42.5]} 43... b4 {[%clk
0:00:11.5]} 44. f3 {[%clk 0:00:38]} 44... Kd4 {[%clk 0:00:11.6]} 45. Kf2 {[%clk
0:00:36]} 45... Kc3 {[%clk 0:00:11.5]} 46. f4 {[%clk 0:00:36.4]} 46... Kxb3
{[%clk 0:00:10.4]} 47. Ke3 {[%clk 0:00:34.8]} 47... Qc3+ {[%clk 0:00:08.7]} 48.
Bd3 {[%clk 0:00:33]} 48... Kxa4 {[%clk 0:00:05.2]} 49. Rxd2 {[%clk 0:00:31.9]}
49... b3 {[%clk 0:00:05.2]} 50. Ke2 {[%clk 0:00:27.2]} 50... Kb4 {[%clk
0:00:05.2]} 51. Bxa6 {[%clk 0:00:26.3]} 51... Qc5 {[%clk 0:00:04.5]} 52. Bd3
{[%clk 0:00:20.3]} 52... Qc3 {[%clk 0:00:04]} 53. g4 {[%clk 0:00:18.5]} 53... b2
{[%clk 0:00:04]} 54. f5 {[%clk 0:00:18.5]} 54... Qe5+ {[%clk 0:00:03]} 55. Kf3
{[%clk 0:00:18.4]} 55... gxf5 {[%clk 0:00:02.7]} 56. gxf5 {[%clk 0:00:19.2]}
56... Kc3 {[%clk 0:00:01.6]} 57. Rd1 {[%clk 0:00:17.2]} 57... Kb3 {[%clk
0:00:01.6]} 58. Be4 {[%clk 0:00:14.3]} 1-0

[Event "Early-Titled-Tuesday-Blitz-March-05-2024"]
[Site "Chess.com"]
[Date "2024.03.05"]
[Round "5"]
[White "MathiasWomacka"]
[Black "Lennis93"]
[Result "1/2-1/2"]
[WhiteElo "2517"]
[BlackElo "2704"]
[TimeControl "180+1"]
[EndTime "8:58:54 PST"]
[Termination "Game drawn by repetition"]

1. e4 {[%clk 0:03:00.9]} 1... e6 {[%clk 0:02:53.8]} 2. d4 {[%clk 0:02:59.2]}
2... d5 {[%clk 0:02:54.7]} 3. Nd2 {[%clk 0:02:57.8]} 3... Nf6 {[%clk 0:02:54.3]}
4. e5 {[%clk 0:02:57.3]} 4... Nfd7 {[%clk 0:02:54.7]} 5. Bd3 {[%clk 0:02:56.8]}
5... c5 {[%clk 0:02:55]} 6. c3 {[%clk 0:02:57.3]} 6... Nc6 {[%clk 0:02:55.3]} 7.
Ne2 {[%clk 0:02:56.9]} 7... cxd4 {[%clk 0:02:55.9]} 8. cxd4 {[%clk 0:02:57.2]}
8... f6 {[%clk 0:02:56.6]} 9. exf6 {[%clk 0:02:55.8]} 9... Nxf6 {[%clk
0:02:57.5]} 10. Nf3 {[%clk 0:02:55.4]} 10... Bd6 {[%clk 0:02:57.6]} 11. O-O
{[%clk 0:02:55.1]} 11... Qc7 {[%clk 0:02:58]} 12. Nc3 {[%clk 0:02:52.3]} 12...
a6 {[%clk 0:02:58]} 13. Bd2 {[%clk 0:02:51.3]} 13... O-O {[%clk 0:02:58]} 14.
Rc1 {[%clk 0:02:50.7]} 14... g6 {[%clk 0:02:57.9]} 15. Re1 {[%clk 0:02:40.2]}
15... Qg7 {[%clk 0:02:57.2]} 16. Na4 {[%clk 0:02:37.9]} 16... Bd7 {[%clk
0:02:41.6]} 17. Nc5 {[%clk 0:02:35.8]} 17... Bxc5 {[%clk 0:02:21.5]} 18. Rxc5
{[%clk 0:02:36.7]} 18... Rae8 {[%clk 0:02:16]} 19. Qc1 {[%clk 0:02:22.1]} 19...
Ng4 {[%clk 0:02:04.8]} 20. Be2 {[%clk 0:02:00.2]} 20... Nxd4 {[%clk 0:01:52.7]}
21. Nxd4 {[%clk 0:01:57.9]} 21... Qxd4 {[%clk 0:01:50.3]} 22. Bxg4 {[%clk
0:01:55.6]} 22... Qxg4 {[%clk 0:01:46.2]} 23. Rc7 {[%clk 0:01:54.6]} 23... e5
{[%clk 0:01:38.7]} 24. Qc5 {[%clk 0:01:43.7]} 24... Bc6 {[%clk 0:01:36.5]} 25.
Bh6 {[%clk 0:01:36.7]} 25... Rf7 {[%clk 0:01:13]} 26. Rxf7 {[%clk 0:01:33.8]}
26... Kxf7 {[%clk 0:01:13.9]} 27. f3 {[%clk 0:01:23.2]} 27... Qh5 {[%clk
0:01:12.1]} 28. Bd2 {[%clk 0:01:20.6]} 28... Qf5 {[%clk 0:01:03.3]} 29. Qd6
{[%clk 0:01:11.9]} 29... Re6 {[%clk 0:01:01.8]} 30. Qc7+ {[%clk 0:01:10.7]}
30... Re7 {[%clk 0:01:02.2]} 31. Qd6 {[%clk 0:01:08]} 31... d4 {[%clk
0:00:49.5]} 32. Bb4 {[%clk 0:01:05.9]} 32... Re8 {[%clk 0:00:49.6]} 33. Qc7+
{[%clk 0:00:58.9]} 33... Qd7 {[%clk 0:00:48.4]} 34. Qb6 {[%clk 0:00:50.9]} 34...
g5 {[%clk 0:00:40.3]} 35. Bd2 {[%clk 0:00:46.4]} 35... Kg6 {[%clk 0:00:38.6]}
36. Qc5 {[%clk 0:00:42.1]} 36... Qd5 {[%clk 0:00:36.2]} 37. Qc1 {[%clk
0:00:41.1]} 37... h6 {[%clk 0:00:35.4]} 38. Qc2+ {[%clk 0:00:39.1]} 38... d3
{[%clk 0:00:35.4]} 39. Qc3 {[%clk 0:00:37.5]} 39... e4 {[%clk 0:00:35.7]} 40.
Re3 {[%clk 0:00:28.6]} 40... exf3 {[%clk 0:00:35.4]} 41. Rxf3 {[%clk 0:00:27.5]}
41... Qe6 {[%clk 0:00:18.7]} 42. Qxd3+ {[%clk 0:00:27]} 42... Be4 {[%clk
0:00:17.9]} 43. Qd4 {[%clk 0:00:24.4]} 43... Bxf3 {[%clk 0:00:18]} 44. gxf3
{[%clk 0:00:24.9]} 44... Qxa2 {[%clk 0:00:13.2]} 45. Bc3 {[%clk 0:00:23]} 45...
Qe6 {[%clk 0:00:11.6]} 46. Qg7+ {[%clk 0:00:17.1]} 46... Kh5 {[%clk 0:00:11.5]}
47. Qxb7 {[%clk 0:00:17.6]} 47... Qe3+ {[%clk 0:00:08.8]} 48. Kg2 {[%clk
0:00:17.5]} 48... Qe2+ {[%clk 0:00:04]} 49. Kg3 {[%clk 0:00:17.5]} 49... Rf8
{[%clk 0:00:04.5]} 50. Qc6 {[%clk 0:00:13.8]} 50... a5 {[%clk 0:00:02.4]} 51.
Bg7 {[%clk 0:00:12.8]} 51... Qe1+ {[%clk 0:00:02.6]} 52. Kg2 {[%clk 0:00:12.6]}
52... Qe2+ {[%clk 0:00:02.9]} 53. Kg3 {[%clk 0:00:11.8]} 53... Qe1+ {[%clk
0:00:02.4]} 54. Kg2 {[%clk 0:00:11.7]} 54... Qd2+ {[%clk 0:00:02.9]} 55. Kg3
{[%clk 0:00:11.7]} 55... Qf4+ {[%clk 0:00:02.9]} 56. Kg2 {[%clk 0:00:11.9]}
56... Qd2+ {[%clk 0:00:01.4]} 57. Kg3 {[%clk 0:00:11.9]} 57... Qe1+ {[%clk
0:00:01.2]} 1/2-1/2

[Event "Early-Titled-Tuesday-Blitz-March-05-2024"]
[Site "Chess.com"]
[Date "2024.03.05"]
[Round "5"]
[White "JonSnowNW1"]
[Black "Akylbek2021"]
[Result "0-1"]
[WhiteElo "2525"]
[BlackElo "2315"]
[TimeControl "180+1"]
[EndTime "8:58:56 PST"]
[Termination "Akylbek2021 won by checkmate"]

1. e4 {[%clk 0:03:00.9]} 1... e6 {[%clk 0:02:56.1]} 2. d4 {[%clk 0:02:59.1]}
2... d5 {[%clk 0:02:56.3]} 3. e5 {[%clk 0:02:59.2]} 3... c5 {[%clk 0:02:55.7]}
4. c3 {[%clk 0:02:58.4]} 4... Nc6 {[%clk 0:02:56.2]} 5. Nf3 {[%clk 0:02:56.2]}
5... Qb6 {[%clk 0:02:55.9]} 6. Bd3 {[%clk 0:02:54.1]} 6... cxd4 {[%clk
0:02:54.6]} 7. cxd4 {[%clk 0:02:54.1]} 7... Nh6 {[%clk 0:02:52.6]} 8. O-O {[%clk
0:02:51.2]} 8... Nf5 {[%clk 0:02:51.4]} 9. Nc3 {[%clk 0:02:13.8]} 9... Nfxd4
{[%clk 0:02:41.7]} 10. Nxd4 {[%clk 0:02:13.4]} 10... Qxd4 {[%clk 0:02:40.8]} 11.
Nb5 {[%clk 0:01:51]} 11... Qxe5 {[%clk 0:02:37.4]} 12. Re1 {[%clk 0:01:48.2]}
12... Qb8 {[%clk 0:02:37.2]} 13. Qf3 {[%clk 0:01:01.8]} 13... Be7 {[%clk
0:02:21]} 14. Qg4 {[%clk 0:00:18]} 14... Kf8 {[%clk 0:02:03.8]} 15. Qf3 {[%clk
0:00:14.4]} 15... a6 {[%clk 0:02:03.3]} 16. Nc3 {[%clk 0:00:13.1]} 16... Bf6
{[%clk 0:01:56.3]} 17. Bf4 {[%clk 0:00:12.1]} 17... e5 {[%clk 0:01:52]} 18. Nxd5
{[%clk 0:00:09.6]} 18... exf4 {[%clk 0:01:46.4]} 19. Qh5 {[%clk 0:00:06.8]}
19... Qd6 {[%clk 0:01:14.6]} 20. Bc4 {[%clk 0:00:06.6]} 20... Ne5 {[%clk
0:01:00.1]} 21. Nxf6 {[%clk 0:00:05]} 21... Qxf6 {[%clk 0:00:54.4]} 22. Rxe5
{[%clk 0:00:05.6]} 22... Be6 {[%clk 0:00:46.1]} 23. Bxe6 {[%clk 0:00:05.3]}
23... fxe6 {[%clk 0:00:47]} 24. Rae1 {[%clk 0:00:05.6]} 24... Re8 {[%clk
0:00:43.9]} 25. Qf3 {[%clk 0:00:06.2]} 25... Re7 {[%clk 0:00:41.1]} 26. R1e4
{[%clk 0:00:06.8]} 26... g5 {[%clk 0:00:39.6]} 27. h4 {[%clk 0:00:07.5]} 27...
h6 {[%clk 0:00:39.9]} 28. Qa3 {[%clk 0:00:05.2]} 28... Kf7 {[%clk 0:00:37.5]}
29. Qb3 {[%clk 0:00:05.3]} 29... Rd8 {[%clk 0:00:33.3]} 30. Qf3 {[%clk
0:00:05.9]} 30... Kg7 {[%clk 0:00:25.6]} 31. hxg5 {[%clk 0:00:05.8]} 31... hxg5
{[%clk 0:00:25.2]} 32. Qg4 {[%clk 0:00:06.1]} 32... Rd5 {[%clk 0:00:20.2]} 33.
Rxe6 {[%clk 0:00:06.3]} 33... Rxe6 {[%clk 0:00:13.4]} 34. Rxe6 {[%clk
0:00:07.2]} 34... Qf5 {[%clk 0:00:09.9]} 35. Qe2 {[%clk 0:00:07.4]} 35... Rd7
{[%clk 0:00:05.5]} 36. Re5 {[%clk 0:00:07.8]} 36... Qf6 {[%clk 0:00:05.4]} 37.
Qe4 {[%clk 0:00:07.2]} 37... Rf7 {[%clk 0:00:03.9]} 38. Re6 {[%clk 0:00:06.6]}
38... Qf5 {[%clk 0:00:04.1]} 39. Qd4+ {[%clk 0:00:06.3]} 39... Kh7 {[%clk
0:00:02.5]} 40. Re8 {[%clk 0:00:05.5]} 40... Rg7 {[%clk 0:00:02.2]} 41. Qd2
{[%clk 0:00:04.8]} 41... Qg4 {[%clk 0:00:02.4]} 42. f3 {[%clk 0:00:04.8]} 42...
Qh5 {[%clk 0:00:02.8]} 43. Qd3+ {[%clk 0:00:05]} 43... Qg6 {[%clk 0:00:03]} 44.
Qxg6+ {[%clk 0:00:05.2]} 44... Kxg6 {[%clk 0:00:03.9]} 45. Re6+ {[%clk
0:00:05.7]} 45... Kf5 {[%clk 0:00:04.2]} 46. Rb6 {[%clk 0:00:06.6]} 46... Rc7
{[%clk 0:00:04.6]} 47. Kh2 {[%clk 0:00:06.9]} 47... Ke5 {[%clk 0:00:04.2]} 48.
Kh3 {[%clk 0:00:07.4]} 48... Kf5 {[%clk 0:00:04.4]} 49. Rb3 {[%clk 0:00:06.9]}
49... Rh7# {[%clk 0:00:04.9]} 0-1

[Event "Early-Titled-Tuesday-Blitz-March-05-2024"]
[Site "Chess.com"]
[Date "2024.03.05"]
[Round "5"]
[White "Nemegejas"]
[Black "otrov-11"]
[Result "1-0"]
[WhiteElo "2795"]
[BlackElo "2611"]
[TimeControl "180+1"]
[EndTime "8:58:59 PST"]
[Termination "Nemegejas won on time"]

1. d4 {[%clk 0:02:57.7]} 1... Nf6 {[%clk 0:02:54.7]} 2. c4 {[%clk 0:02:58]} 2...
e6 {[%clk 0:02:55.1]} 3. Nf3 {[%clk 0:02:57.3]} 3... b6 {[%clk 0:02:54.5]} 4. g3
{[%clk 0:02:54.6]} 4... Bb7 {[%clk 0:02:54.8]} 5. Bg2 {[%clk 0:02:54.7]} 5...
Be7 {[%clk 0:02:55.5]} 6. O-O {[%clk 0:02:55]} 6... O-O {[%clk 0:02:56.3]} 7.
Nc3 {[%clk 0:02:53.4]} 7... Ne4 {[%clk 0:02:56.4]} 8. Bd2 {[%clk 0:02:53.8]}
8... Nxc3 {[%clk 0:02:56.8]} 9. Bxc3 {[%clk 0:02:54]} 9... Be4 {[%clk
0:02:57.7]} 10. Re1 {[%clk 0:02:52.6]} 10... d6 {[%clk 0:02:53.9]} 11. Bh3
{[%clk 0:02:52.6]} 11... Nd7 {[%clk 0:02:50]} 12. Nd2 {[%clk 0:02:52.9]} 12...
Bg6 {[%clk 0:02:37.4]} 13. e4 {[%clk 0:02:51.9]} 13... e5 {[%clk 0:02:37.9]} 14.
Nf3 {[%clk 0:02:45.1]} 14... exd4 {[%clk 0:02:26.6]} 15. Nxd4 {[%clk 0:02:46]}
15... Nc5 {[%clk 0:02:20.9]} 16. Nc6 {[%clk 0:02:43]} 16... Qe8 {[%clk
0:02:20.4]} 17. Nxe7+ {[%clk 0:02:35.7]} 17... Qxe7 {[%clk 0:02:21.3]} 18. f3
{[%clk 0:02:23.4]} 18... a5 {[%clk 0:02:17.4]} 19. b3 {[%clk 0:02:22.9]} 19...
f6 {[%clk 0:02:17.3]} 20. Qc2 {[%clk 0:02:03.6]} 20... Rfe8 {[%clk 0:02:16.3]}
21. Bd4 {[%clk 0:01:51]} 21... Bf7 {[%clk 0:02:13.1]} 22. Re3 {[%clk 0:01:49.3]}
22... Be6 {[%clk 0:02:09.7]} 23. Bg2 {[%clk 0:01:48.7]} 23... Rad8 {[%clk
0:01:45.8]} 24. Rae1 {[%clk 0:01:47.1]} 24... Bc8 {[%clk 0:01:41.2]} 25. Qb2
{[%clk 0:01:39.6]} 25... Bb7 {[%clk 0:01:31.4]} 26. h4 {[%clk 0:01:32.3]} 26...
Ba8 {[%clk 0:01:30.4]} 27. g4 {[%clk 0:01:27]} 27... Ne6 {[%clk 0:01:28.5]} 28.
Bc3 {[%clk 0:01:22.5]} 28... Nf4 {[%clk 0:01:27.8]} 29. Qf2 {[%clk 0:01:16.7]}
29... Qf7 {[%clk 0:01:20.6]} 30. Bf1 {[%clk 0:01:14.5]} 30... Bc6 {[%clk
0:01:03.8]} 31. Qg3 {[%clk 0:01:12.6]} 31... Ne6 {[%clk 0:00:57.4]} 32. f4
{[%clk 0:01:10.7]} 32... Nc5 {[%clk 0:00:56.9]} 33. Bg2 {[%clk 0:01:10.7]} 33...
Re7 {[%clk 0:00:47.7]} 34. g5 {[%clk 0:01:08]} 34... fxg5 {[%clk 0:00:43.8]} 35.
hxg5 {[%clk 0:01:07.2]} 35... Rde8 {[%clk 0:00:44.1]} 36. e5 {[%clk 0:00:53.2]}
36... Bxg2 {[%clk 0:00:43.4]} 37. Kxg2 {[%clk 0:00:54.1]} 37... dxe5 {[%clk
0:00:43.3]} 38. Bxe5 {[%clk 0:00:54.4]} 38... Qf5 {[%clk 0:00:39]} 39. Qf3
{[%clk 0:00:46.4]} 39... Ne6 {[%clk 0:00:27.9]} 40. Kg3 {[%clk 0:00:43.3]} 40...
Nxg5 {[%clk 0:00:20.3]} 41. Qg4 {[%clk 0:00:20.3]} 41... Qxg4+ {[%clk
0:00:17.9]} 42. Kxg4 {[%clk 0:00:21.2]} 42... Nf7 {[%clk 0:00:18.6]} 43. Kf5
{[%clk 0:00:20.5]} 43... Nd6+ {[%clk 0:00:17.5]} 44. Kg4 {[%clk 0:00:19.1]}
44... g6 {[%clk 0:00:16.4]} 45. Rd3 {[%clk 0:00:15.7]} 45... Nf5 {[%clk
0:00:15.6]} 46. Red1 {[%clk 0:00:14.5]} 46... Kf7 {[%clk 0:00:13.4]} 47. c5
{[%clk 0:00:11.4]} 47... bxc5 {[%clk 0:00:12.3]} 48. Rc1 {[%clk 0:00:08.6]}
48... h5+ {[%clk 0:00:05.4]} 49. Kg5 {[%clk 0:00:08.1]} 49... Ng7 {[%clk
0:00:06]} 50. Bxg7 {[%clk 0:00:04.7]} 50... Kxg7 {[%clk 0:00:06.9]} 51. Rxc5
{[%clk 0:00:04.8]} 51... Rf8 {[%clk 0:00:07.1]} 52. Rdc3 {[%clk 0:00:04.2]}
52... Rff7 {[%clk 0:00:06.3]} 53. Rxa5 {[%clk 0:00:04.5]} 53... Re6 {[%clk
0:00:06.3]} 54. Rac5 {[%clk 0:00:04.3]} 54... Ree7 {[%clk 0:00:05.6]} 55. a4
{[%clk 0:00:04]} 55... Rd7 {[%clk 0:00:04.5]} 56. a5 {[%clk 0:00:03.4]} 1-0

[Event "Early-Titled-Tuesday-Blitz-March-05-2024"]
[Site "Chess.com"]
[Date "2024.03.05"]
[Round "5"]
[White "FredddieCroderg"]
[Black "Chessdreamer2020"]
[Result "1-0"]
[WhiteElo "2293"]
[BlackElo "2515"]
[TimeControl "180+1"]
[EndTime "8:58:59 PST"]
[Termination "FredddieCroderg won on time"]

1. e4 {[%clk 0:03:00.9]} 1... d6 {[%clk 0:02:59.6]} 2. Bc4 {[%clk 0:02:59.6]}
2... Nf6 {[%clk 0:02:59.5]} 3. Qf3 {[%clk 0:02:58.7]} 3... c6 {[%clk 0:02:58.8]}
4. d3 {[%clk 0:02:57.7]} 4... d5 {[%clk 0:02:58.7]} 5. exd5 {[%clk 0:02:52.3]}
5... cxd5 {[%clk 0:02:59.5]} 6. Bb5+ {[%clk 0:02:52.2]} 6... Nc6 {[%clk
0:02:59.8]} 7. Bd2 {[%clk 0:02:50.8]} 7... Bg4 {[%clk 0:02:56.6]} 8. Qg3 {[%clk
0:02:49.5]} 8... e6 {[%clk 0:02:56.4]} 9. f3 {[%clk 0:02:48.2]} 9... Bh5 {[%clk
0:02:56.1]} 10. Ne2 {[%clk 0:02:44.9]} 10... Bg6 {[%clk 0:02:54.6]} 11. Nbc3
{[%clk 0:02:39.7]} 11... Bd6 {[%clk 0:02:53.1]} 12. Qh3 {[%clk 0:02:35]} 12...
O-O {[%clk 0:02:50.9]} 13. Nf4 {[%clk 0:02:32.9]} 13... Nd4 {[%clk 0:02:49.2]}
14. Nxg6 {[%clk 0:02:26.8]} 14... hxg6 {[%clk 0:02:48.3]} 15. Rc1 {[%clk
0:02:21.6]} 15... Qb6 {[%clk 0:02:32.4]} 16. Ba4 {[%clk 0:02:01.7]} 16... Qxb2
{[%clk 0:02:31.4]} 17. O-O {[%clk 0:01:52.6]} 17... Qb6 {[%clk 0:02:26]} 18. Rb1
{[%clk 0:01:44.1]} 18... Qc7 {[%clk 0:02:15.6]} 19. Qh4 {[%clk 0:01:35.4]} 19...
Nf5 {[%clk 0:02:13.1]} 20. Qe1 {[%clk 0:01:31.6]} 20... Bxh2+ {[%clk 0:02:02.3]}
21. Kh1 {[%clk 0:01:28.8]} 21... Ng3+ {[%clk 0:01:56.6]} 22. Kxh2 {[%clk
0:01:29]} 22... Nxf1+ {[%clk 0:01:56.4]} 23. Kg1 {[%clk 0:01:28.9]} 23... Nxd2
{[%clk 0:01:56.7]} 24. Qxd2 {[%clk 0:01:28.7]} 24... a6 {[%clk 0:01:56.1]} 25.
Ne2 {[%clk 0:01:26.5]} 25... b5 {[%clk 0:01:55.2]} 26. Bb3 {[%clk 0:01:26.3]}
26... Rac8 {[%clk 0:01:55.4]} 27. Kf2 {[%clk 0:01:22.6]} 27... Qh2 {[%clk
0:01:52]} 28. Ng3 {[%clk 0:01:18]} 28... Nh5 {[%clk 0:01:46.3]} 29. Nxh5 {[%clk
0:01:17.5]} 29... Qxh5 {[%clk 0:01:45.6]} 30. Qf4 {[%clk 0:01:14.7]} 30... Rc6
{[%clk 0:01:40.1]} 31. a4 {[%clk 0:01:11]} 31... Rfc8 {[%clk 0:01:39.4]} 32.
axb5 {[%clk 0:01:07.1]} 32... axb5 {[%clk 0:01:40.3]} 33. Ra1 {[%clk 0:00:59.8]}
33... Qf5 {[%clk 0:01:27.6]} 34. Qh4 {[%clk 0:00:53.4]} 34... Qf6 {[%clk
0:01:26.5]} 35. Qh1 {[%clk 0:00:48.5]} 35... Qd4+ {[%clk 0:01:24.8]} 36. Kg3
{[%clk 0:00:47.1]} 36... g5 {[%clk 0:01:13.3]} 37. Qh5 {[%clk 0:00:42.4]} 37...
Qf4+ {[%clk 0:01:12.9]} 38. Kh3 {[%clk 0:00:40.9]} 38... e5 {[%clk 0:01:05.7]}
39. g3 {[%clk 0:00:31.7]} 39... Qf5+ {[%clk 0:01:04.6]} 40. Kg2 {[%clk
0:00:25.3]} 40... Rh6 {[%clk 0:00:49]} 41. Qg4 {[%clk 0:00:21.7]} 41... Qxg4
{[%clk 0:00:42.9]} 42. fxg4 {[%clk 0:00:21.1]} 42... Rf6 {[%clk 0:00:24.1]} 43.
Ra5 {[%clk 0:00:17.9]} 43... Rc5 {[%clk 0:00:23.8]} 44. Ra8+ {[%clk 0:00:13.7]}
44... Kh7 {[%clk 0:00:23.9]} 45. Re8 {[%clk 0:00:14.2]} 45... Re6 {[%clk
0:00:15.2]} 46. Rf8 {[%clk 0:00:14.3]} 46... Kg6 {[%clk 0:00:12]} 47. Rd8 {[%clk
0:00:14]} 47... e4 {[%clk 0:00:04.7]} 48. Bxd5 {[%clk 0:00:06.4]} 48... Rxc2+
{[%clk 0:00:04.5]} 49. Kh3 {[%clk 0:00:05.5]} 1-0

[Event "Early-Titled-Tuesday-Blitz-March-05-2024"]
[Site "Chess.com"]
[Date "2024.03.05"]
[Round "5"]
[White "JonasEilenberg"]
[Black "NewYearGirl"]
[Result "0-1"]
[WhiteElo "2535"]
[BlackElo "2384"]
[TimeControl "180+1"]
[EndTime "8:59:03 PST"]
[Termination "NewYearGirl won by checkmate"]

1. d4 {[%clk 0:03:00.9]} 1... Nf6 {[%clk 0:03:00]} 2. c4 {[%clk 0:03:00.4]} 2...
c5 {[%clk 0:03:00.4]} 3. d5 {[%clk 0:02:57.1]} 3... b5 {[%clk 0:03:00.5]} 4. Qc2
{[%clk 0:02:57.7]} 4... b4 {[%clk 0:03:00]} 5. e4 {[%clk 0:02:55.3]} 5... d6
{[%clk 0:03:00.6]} 6. a3 {[%clk 0:02:55.1]} 6... a5 {[%clk 0:02:57.3]} 7. Bd3
{[%clk 0:02:49.3]} 7... Nfd7 {[%clk 0:02:53.3]} 8. f4 {[%clk 0:02:45.5]} 8... g6
{[%clk 0:02:53.5]} 9. Nf3 {[%clk 0:02:45.7]} 9... Bg7 {[%clk 0:02:53.4]} 10. O-O
{[%clk 0:02:46.3]} 10... Qb6 {[%clk 0:02:46.4]} 11. Be3 {[%clk 0:02:43]} 11...
bxa3 {[%clk 0:02:40]} 12. Nxa3 {[%clk 0:02:37.3]} 12... Qxb2 {[%clk 0:02:39]}
13. Ra2 {[%clk 0:02:25.6]} 13... Qxc2 {[%clk 0:02:33.7]} 14. Bxc2 {[%clk
0:02:26.5]} 14... Ba6 {[%clk 0:02:16.8]} 15. Ba4 {[%clk 0:02:26.4]} 15... O-O
{[%clk 0:02:14.9]} 16. Rb1 {[%clk 0:02:26.1]} 16... Bc3 {[%clk 0:02:06.3]} 17.
Nb5 {[%clk 0:02:12.5]} 17... Bxb5 {[%clk 0:02:00]} 18. Bxb5 {[%clk 0:02:13.4]}
18... Nf6 {[%clk 0:01:55.1]} 19. e5 {[%clk 0:02:06.4]} 19... Ng4 {[%clk
0:01:50.4]} 20. Re2 {[%clk 0:01:57.2]} 20... Nxe3 {[%clk 0:01:47.4]} 21. Rxe3
{[%clk 0:01:57.6]} 21... Bb4 {[%clk 0:01:44.7]} 22. exd6 {[%clk 0:01:35.8]}
22... exd6 {[%clk 0:01:45.6]} 23. Ng5 {[%clk 0:01:36.5]} 23... Kg7 {[%clk
0:01:31.8]} 24. Ne4 {[%clk 0:01:36.3]} 24... Rd8 {[%clk 0:01:31.8]} 25. f5
{[%clk 0:01:36.3]} 25... a4 {[%clk 0:01:24.7]} 26. f6+ {[%clk 0:01:33.8]} 26...
Kf8 {[%clk 0:01:23.1]} 27. Nxd6 {[%clk 0:01:33]} 27... Nd7 {[%clk 0:01:17.3]}
28. Re7 {[%clk 0:01:26.9]} 28... Ne5 {[%clk 0:00:49.8]} 29. Nb7 {[%clk
0:01:20.6]} 29... Rdb8 {[%clk 0:00:50]} 30. Rxe5 {[%clk 0:01:12.9]} 30... Rxb7
{[%clk 0:00:50.4]} 31. d6 {[%clk 0:01:09.2]} 31... Bc3 {[%clk 0:00:47.7]} 32.
Re2 {[%clk 0:01:02.2]} 32... Bxf6 {[%clk 0:00:44.5]} 33. d7 {[%clk 0:01:01.7]}
33... Kg7 {[%clk 0:00:40]} 34. Ra2 {[%clk 0:00:48.7]} 34... a3 {[%clk
0:00:39.4]} 35. Rb3 {[%clk 0:00:48.6]} 35... Bb2 {[%clk 0:00:35.9]} 36. Rd3
{[%clk 0:00:48.6]} 36... Rd8 {[%clk 0:00:34.5]} 37. Kf2 {[%clk 0:00:33.9]} 37...
f5 {[%clk 0:00:33.7]} 38. Ke2 {[%clk 0:00:33.9]} 38... Kf6 {[%clk 0:00:34.2]}
39. Kf3 {[%clk 0:00:27.9]} 39... Rb6 {[%clk 0:00:34.1]} 40. Raxa3 {[%clk
0:00:23.5]} 40... Bxa3 {[%clk 0:00:32.5]} 41. Rxa3 {[%clk 0:00:24.4]} 41... Rd6
{[%clk 0:00:33]} 42. Ra7 {[%clk 0:00:21]} 42... g5 {[%clk 0:00:33]} 43. Rc7
{[%clk 0:00:21]} 43... Rd3+ {[%clk 0:00:32]} 44. Ke2 {[%clk 0:00:20.5]} 44...
Rd4 {[%clk 0:00:27.2]} 45. Rc6+ {[%clk 0:00:19.6]} 45... Ke5 {[%clk 0:00:22.8]}
46. Rxc5+ {[%clk 0:00:20.5]} 46... Kf4 {[%clk 0:00:23]} 47. g3+ {[%clk
0:00:14.4]} 47... Kg4 {[%clk 0:00:22.2]} 48. Ke3 {[%clk 0:00:14.6]} 48... Re4+
{[%clk 0:00:21.8]} 49. Kf2 {[%clk 0:00:14.5]} 49... f4 {[%clk 0:00:20.1]} 50.
gxf4 {[%clk 0:00:12.9]} 50... Rxf4+ {[%clk 0:00:18.8]} 51. Kg2 {[%clk
0:00:13.2]} 51... Rd4 {[%clk 0:00:19.4]} 52. Rc7 {[%clk 0:00:10.8]} 52... Rd2+
{[%clk 0:00:19.2]} 53. Kf1 {[%clk 0:00:11.2]} 53... h5 {[%clk 0:00:18.8]} 54. c5
{[%clk 0:00:10.8]} 54... Kf3 {[%clk 0:00:18]} 55. Ke1 {[%clk 0:00:10.6]} 55...
Rb2 {[%clk 0:00:17.6]} 56. Rb7 {[%clk 0:00:09.4]} 56... Ke3 {[%clk 0:00:15.2]}
57. c6 {[%clk 0:00:07.9]} 57... Ra8 {[%clk 0:00:15.6]} 58. Bd3 {[%clk
0:00:03.2]} 58... Ra1+ {[%clk 0:00:16.2]} 59. Bb1 {[%clk 0:00:03.6]} 59...
Raxb1# {[%clk 0:00:16.9]} 0-1